[Event "Titled Tuesday Blitz November 29 Early 2022"]
[White "Sengupta, Deep"]
[Black "Adnan, Habib"]
[WhiteFideId "5008352"]
[BlackFideId "11202270"]
[WhiteElo "2397"]
[BlackElo "2110"]
[Result "1-0"]
[Round "05"]
[TimeControl "180+1"]
[Date "2022.11.30"]
[WhiteClock "0:00:36"]
[BlackClock "0:00:05"]

1. Nf3 {[%clk 0:03:00]}  Nf6 {[%clk 0:02:59]} 2. c4 {[%clk 0:03:00]}  g6 {[%clk 0:02:57]} 3. Nc3 {[%clk 0:02:59]}  Bg7 {[%clk 0:02:57]} 4. e4 {[%clk 0:02:59]}  d6 {[%clk 0:02:58]} 5. d4 {[%clk 0:03:00]}  O-O {[%clk 0:02:58]} 6. Be2 {[%clk 0:03:00]}  e5 {[%clk 0:02:58]} 7. d5 {[%clk 0:03:00]}  a5 {[%clk 0:02:58]} 8. h3 {[%clk 0:03:01]}  Na6 {[%clk 0:02:58]} 9. Be3 {[%clk 0:02:58]}  Bd7 {[%clk 0:02:54]} 10. Nd2 {[%clk 0:02:54]}  Nc5 {[%clk 0:02:49]} 11. Qc2 {[%clk 0:02:53]}  a4 {[%clk 0:02:45]} 12. O-O {[%clk 0:02:48]}  Ne8 {[%clk 0:02:42]} 13. b4 {[%clk 0:02:45]}  axb3 {[%clk 0:02:40]} 14. axb3 {[%clk 0:02:46]}  Rxa1 {[%clk 0:02:33]} 15. Rxa1 {[%clk 0:02:45]}  f5 {[%clk 0:02:31]} 16. b4 {[%clk 0:02:39]}  Nxe4 {[%clk 0:02:29]} 17. Ndxe4 {[%clk 0:02:38]}  fxe4 {[%clk 0:02:29]} 18. Nxe4 {[%clk 0:02:38]}  h6 {[%clk 0:02:19]} 19. Bd3 {[%clk 0:02:37]}  g5 {[%clk 0:02:17]} 20. Ra7 {[%clk 0:02:35]}  b6 {[%clk 0:02:13]} 21. c5 {[%clk 0:02:30]}  bxc5 {[%clk 0:01:54]} 22. bxc5 {[%clk 0:02:30]}  Bf5 {[%clk 0:01:54]} 23. c6 {[%clk 0:02:22]}  Kh8 {[%clk 0:01:49]} 24. Ng3 {[%clk 0:02:01]}  Bc8 {[%clk 0:01:33]} 25. Ra8 {[%clk 0:01:54]}  Nf6 {[%clk 0:01:13]} 26. Qa4 {[%clk 0:01:51]}  Qe7 {[%clk 0:01:03]} 27. Qa5 {[%clk 0:01:34]}  e4 {[%clk 0:00:54]} 28. Bc4 {[%clk 0:01:29]}  g4 {[%clk 0:00:43]} 29. h4 {[%clk 0:01:28]}  Nh7 {[%clk 0:00:42]} 30. Ra7 {[%clk 0:01:19]}  Rf7 {[%clk 0:00:41]} 31. Ra8 {[%clk 0:01:14]}  Rf8 {[%clk 0:00:41]} 32. Qa7 {[%clk 0:01:02]}  Be5 {[%clk 0:00:38]} 33. Bxh6 {[%clk 0:00:56]}  Rg8 {[%clk 0:00:31]} 34. Be3 {[%clk 0:00:55]}  Qxh4 {[%clk 0:00:26]} 35. Qxc7 {[%clk 0:00:53]}  Nf6 {[%clk 0:00:08]} 36. Rxc8 {[%clk 0:00:51]}  Bxg3 {[%clk 0:00:08]} 37. Rxg8+ {[%clk 0:00:43]}  Nxg8 {[%clk 0:00:07]} 38. fxg3 {[%clk 0:00:42]}  Qf6 {[%clk 0:00:05]} 39. Qa7 {[%clk 0:00:36]} 1-0


[Site "https://www.chess.com"]

[Event "Titled Tuesday Blitz November 29 Early 2022"]
[White "Sethuraman, S.P."]
[Black "Buksa, Nataliya"]
[WhiteFideId "5021596"]
[BlackFideId "14123622"]
[WhiteElo "2929"]
[BlackElo "2632"]
[Result "1-0"]
[Round "05"]
[TimeControl "180+1"]
[Date "2022.11.30"]
[WhiteClock "0:00:45"]
[BlackClock "0:00:15"]

1. e4 {[%clk 0:03:00]}  c5 {[%clk 0:02:41]} 2. Nf3 {[%clk 0:03:01]}  Nc6 {[%clk 0:02:42]} 3. Bb5 {[%clk 0:03:01]}  g6 {[%clk 0:02:42]} 4. O-O {[%clk 0:03:01]}  Bg7 {[%clk 0:02:42]} 5. c3 {[%clk 0:03:02]}  e5 {[%clk 0:02:43]} 6. d4 {[%clk 0:03:01]}  exd4 {[%clk 0:02:42]} 7. cxd4 {[%clk 0:03:01]}  cxd4 {[%clk 0:02:43]} 8. Bf4 {[%clk 0:03:01]}  a6 {[%clk 0:02:43]} 9. Bc4 {[%clk 0:03:00]}  Nge7 {[%clk 0:02:42]} 10. Bd6 {[%clk 0:03:00]}  O-O {[%clk 0:02:40]} 11. Nbd2 {[%clk 0:02:59]}  b5 {[%clk 0:02:39]} 12. Bd5 {[%clk 0:02:49]}  Bb7 {[%clk 0:02:39]} 13. Nb3 {[%clk 0:02:45]}  Na5 {[%clk 0:02:36]} 14. Nxa5 {[%clk 0:02:40]}  Bxd5 {[%clk 0:02:33]} 15. exd5 {[%clk 0:02:34]}  Re8 {[%clk 0:02:29]} 16. Bxe7 {[%clk 0:02:28]}  Qxe7 {[%clk 0:02:29]} 17. Nb3 {[%clk 0:02:27]}  Qd6 {[%clk 0:02:28]} 18. Nbxd4 {[%clk 0:02:25]}  Qxd5 {[%clk 0:02:28]} 19. Qd2 {[%clk 0:02:22]}  Re4 {[%clk 0:02:24]} 20. Rad1 {[%clk 0:02:21]}  Rae8 {[%clk 0:02:23]} 21. b3 {[%clk 0:02:21]}  h5 {[%clk 0:02:22]} 22. Nc2 {[%clk 0:02:16]}  Qc5 {[%clk 0:02:19]} 23. Ne3 {[%clk 0:02:09]}  Bh6 {[%clk 0:02:17]} 24. Kh1 {[%clk 0:02:09]}  R8e7 {[%clk 0:02:08]} 25. Qd5 {[%clk 0:02:05]}  Bxe3 {[%clk 0:02:04]} 26. fxe3 {[%clk 0:02:04]}  Qxd5 {[%clk 0:02:01]} 27. Rxd5 {[%clk 0:02:03]}  Rxe3 {[%clk 0:02:02]} 28. Rfd1 {[%clk 0:02:00]}  Rc3 {[%clk 0:02:02]} 29. Kg1 {[%clk 0:01:53]}  Rc2 {[%clk 0:02:01]} 30. R5d2 {[%clk 0:01:53]}  Rc7 {[%clk 0:01:52]} 31. Kf2 {[%clk 0:01:52]}  f6 {[%clk 0:01:51]} 32. Re1 {[%clk 0:01:52]}  Kf7 {[%clk 0:01:50]} 33. Rxe7+ {[%clk 0:01:51]}  Kxe7 {[%clk 0:01:51]} 34. h4 {[%clk 0:01:50]}  Rc1 {[%clk 0:01:43]} 35. Ke3 {[%clk 0:01:48]}  Ke6 {[%clk 0:01:35]} 36. Kf4 {[%clk 0:01:45]}  Rc5 {[%clk 0:01:28]} 37. Ke4 {[%clk 0:01:43]}  Rc1 {[%clk 0:01:25]} 38. Nd4+ {[%clk 0:01:43]}  Ke7 {[%clk 0:01:24]} 39. Ne2 {[%clk 0:01:40]}  Rc5 {[%clk 0:01:22]} 40. Nf4 {[%clk 0:01:38]}  f5+ {[%clk 0:01:20]} 41. Kd4 {[%clk 0:01:29]}  Rc6 {[%clk 0:01:19]} 42. Re2+ {[%clk 0:01:28]}  Kf7 {[%clk 0:01:06]} 43. Nd5 {[%clk 0:01:27]}  Rc1 {[%clk 0:00:58]} 44. Re7+ {[%clk 0:01:24]}  Kf8 {[%clk 0:00:58]} 45. Rxd7 {[%clk 0:01:23]}  Rc2 {[%clk 0:00:57]} 46. g3 {[%clk 0:01:00]}  Rg2 {[%clk 0:00:51]} 47. Ke5 {[%clk 0:00:49]}  Rxg3 {[%clk 0:00:45]} 48. Ra7 {[%clk 0:00:49]}  Rg4 {[%clk 0:00:31]} 49. Nf4 {[%clk 0:00:47]}  Ke8 {[%clk 0:00:23]} 50. Ne6 {[%clk 0:00:46]}  f4 {[%clk 0:00:15]} 51. Kf6 {[%clk 0:00:45]}  f3 {[%clk 0:00:15]} 52. Re7# {[%clk 0:00:45]} 1-0


[Site "https://www.chess.com"]

[Event "Titled Tuesday Blitz November 29 Early 2022"]
[White "Shuvalov, Evgenij"]
[Black "Gareyev, Timur"]
[WhiteFideId "4187237"]
[BlackFideId "14200937"]
[WhiteElo "2049"]
[BlackElo "2552"]
[Result "0-1"]
[Round "05"]
[TimeControl "180+1"]
[Date "2022.11.30"]
[WhiteClock "0:00:23"]
[BlackClock "0:00:14"]

1. d4 {[%clk 0:02:59]}  Nf6 {[%clk 0:02:50]} 2. c4 {[%clk 0:02:59]}  e5 {[%clk 0:02:39]} 3. dxe5 {[%clk 0:02:55]}  Ne4 {[%clk 0:02:38]} 4. a3 {[%clk 0:02:41]}  d6 {[%clk 0:02:28]} 5. Nf3 {[%clk 0:02:38]}  Nc6 {[%clk 0:02:23]} 6. Bf4 {[%clk 0:02:31]}  g5 {[%clk 0:02:20]} 7. Bc1 {[%clk 0:02:13]}  g4 {[%clk 0:02:10]} 8. Nfd2 {[%clk 0:02:13]}  Ng5 {[%clk 0:01:52]} 9. exd6 {[%clk 0:01:53]}  Bg7 {[%clk 0:01:36]} 10. Nc3 {[%clk 0:01:46]}  Bxc3 {[%clk 0:01:33]} 11. bxc3 {[%clk 0:01:47]}  Qxd6 {[%clk 0:01:31]} 12. e3 {[%clk 0:01:35]}  Bf5 {[%clk 0:01:26]} 13. Be2 {[%clk 0:01:35]}  h5 {[%clk 0:01:24]} 14. Qb3 {[%clk 0:01:32]}  O-O-O {[%clk 0:01:20]} 15. Qb5 {[%clk 0:01:27]}  Ne5 {[%clk 0:01:18]} 16. c5 {[%clk 0:01:25]}  Qg6 {[%clk 0:01:09]} 17. c6 {[%clk 0:01:20]}  Nxc6 {[%clk 0:01:03]} 18. O-O {[%clk 0:01:11]}  Rxd2 {[%clk 0:00:53]} 19. Bxd2 {[%clk 0:01:11]}  Nf3+ {[%clk 0:00:48]} 20. Bxf3 {[%clk 0:01:03]}  gxf3 {[%clk 0:00:49]} 21. g3 {[%clk 0:01:03]}  Qg4 {[%clk 0:00:35]} 22. Kh1 {[%clk 0:01:03]}  Rd8 {[%clk 0:00:18]} 23. e4 {[%clk 0:00:52]}  Bxe4 {[%clk 0:00:17]} 24. Bf4 {[%clk 0:00:47]}  Bd3 {[%clk 0:00:17]} 25. Qc5 {[%clk 0:00:44]}  Bxf1 {[%clk 0:00:17]} 26. Rxf1 {[%clk 0:00:45]}  Qh3 {[%clk 0:00:17]} 27. Rg1 {[%clk 0:00:45]}  Rd1 {[%clk 0:00:18]} 28. Qf8+ {[%clk 0:00:43]}  Nd8 {[%clk 0:00:18]} 29. Qxd8+ {[%clk 0:00:23]}  Rxd8 {[%clk 0:00:14]} 0-1


[Site "https://www.chess.com"]

[Event "Titled Tuesday Blitz November 29 Early 2022"]
[White "Silva, Miguel Antonio Neto"]
[Black "Samaganova, Aleksandra"]
[WhiteFideId "1911929"]
[BlackFideId "13800221"]
[WhiteElo "2223"]
[BlackElo "1864"]
[Result "1-0"]
[Round "05"]
[TimeControl "180+1"]
[Date "2022.11.30"]
[WhiteClock "0:01:52"]
[BlackClock "0:00:31"]

1. d4 {[%clk 0:03:00]}  Nf6 {[%clk 0:02:59]} 2. c4 {[%clk 0:02:59]}  e6 {[%clk 0:02:59]} 3. Nf3 {[%clk 0:02:59]}  b6 {[%clk 0:02:59]} 4. g3 {[%clk 0:02:58]}  Bb7 {[%clk 0:03:00]} 5. Bg2 {[%clk 0:02:58]}  Be7 {[%clk 0:02:58]} 6. O-O {[%clk 0:02:57]}  O-O {[%clk 0:02:59]} 7. d5 {[%clk 0:02:56]}  exd5 {[%clk 0:02:57]} 8. Nh4 {[%clk 0:02:56]}  c6 {[%clk 0:02:57]} 9. cxd5 {[%clk 0:02:55]}  Nxd5 {[%clk 0:02:56]} 10. Nf5 {[%clk 0:02:55]}  Bf6 {[%clk 0:02:56]} 11. e4 {[%clk 0:02:55]}  Nc7 {[%clk 0:02:55]} 12. Nc3 {[%clk 0:02:56]}  d5 {[%clk 0:02:48]} 13. exd5 {[%clk 0:02:55]}  Nxd5 {[%clk 0:02:44]} 14. Ne4 {[%clk 0:02:49]}  Re8 {[%clk 0:02:28]} 15. Nfd6 {[%clk 0:02:38]}  Re7 {[%clk 0:02:19]} 16. Nxf6+ {[%clk 0:02:24]}  gxf6 {[%clk 0:01:57]} 17. Nf5 {[%clk 0:02:23]}  Kh8 {[%clk 0:01:05]} 18. Bxd5 {[%clk 0:02:06]}  cxd5 {[%clk 0:01:00]} 19. Qg4 {[%clk 0:02:04]}  Qg8 {[%clk 0:00:31]} 20. Qxg8+ {[%clk 0:02:04]}  Kxg8 {[%clk 0:00:32]} 21. Nxe7+ {[%clk 0:02:04]}  Kf8 {[%clk 0:00:32]} 22. Nf5 {[%clk 0:02:03]}  Nd7 {[%clk 0:00:33]} 23. Bh6+ {[%clk 0:01:56]}  Ke8 {[%clk 0:00:32]} 24. Rfe1+ {[%clk 0:01:55]}  Kd8 {[%clk 0:00:31]} 25. Nd6 {[%clk 0:01:52]} 1-0


[Site "https://www.chess.com"]

[Event "Titled Tuesday Blitz November 29 Early 2022"]
[White "Tarasova, Viktoriya"]
[Black "Zaksaite, Salomeja"]
[WhiteFideId "4175840"]
[BlackFideId "12801496"]
[WhiteElo "2182"]
[BlackElo "2079"]
[Result "0-1"]
[Round "05"]
[TimeControl "180+1"]
[Date "2022.11.30"]
[WhiteClock "0:00:02"]
[BlackClock "0:00:14"]

1. d4 {[%clk 0:03:00]}  Nf6 {[%clk 0:02:59]} 2. c4 {[%clk 0:03:00]}  g6 {[%clk 0:02:59]} 3. Nc3 {[%clk 0:03:00]}  d5 {[%clk 0:02:59]} 4. cxd5 {[%clk 0:02:59]}  Nxd5 {[%clk 0:02:59]} 5. g3 {[%clk 0:03:00]}  Bg7 {[%clk 0:02:59]} 6. Bg2 {[%clk 0:03:00]}  Nb6 {[%clk 0:02:55]} 7. Nf3 {[%clk 0:02:58]}  O-O {[%clk 0:02:55]} 8. O-O {[%clk 0:02:59]}  Nc6 {[%clk 0:02:52]} 9. e3 {[%clk 0:02:59]}  e5 {[%clk 0:02:42]} 10. d5 {[%clk 0:02:58]}  e4 {[%clk 0:02:42]} 11. dxc6 {[%clk 0:02:52]}  Qxd1 {[%clk 0:02:42]} 12. Rxd1 {[%clk 0:02:41]}  exf3 {[%clk 0:02:41]} 13. Bxf3 {[%clk 0:02:41]}  bxc6 {[%clk 0:02:42]} 14. Bd2 {[%clk 0:02:26]}  Rb8 {[%clk 0:02:41]} 15. b3 {[%clk 0:02:13]}  Rd8 {[%clk 0:02:29]} 16. Rac1 {[%clk 0:02:13]}  Bf5 {[%clk 0:02:01]} 17. Be1 {[%clk 0:02:09]}  Rxd1 {[%clk 0:01:46]} 18. Rxd1 {[%clk 0:02:08]}  c5 {[%clk 0:01:39]} 19. Nb5 {[%clk 0:01:56]}  c4 {[%clk 0:01:26]} 20. bxc4 {[%clk 0:01:43]}  Nxc4 {[%clk 0:01:24]} 21. Nxa7 {[%clk 0:01:38]}  Ne5 {[%clk 0:01:16]} 22. Bg2 {[%clk 0:00:55]}  Bg4 {[%clk 0:01:14]} 23. Rc1 {[%clk 0:00:43]}  Nd3 {[%clk 0:01:09]} 24. Nc6 {[%clk 0:00:32]}  Rb2 {[%clk 0:00:26]} 25. Ne7+ {[%clk 0:00:02]}  Kf8 {[%clk 0:00:24]} 26. Rxc7 {[%clk 0:00:02]}  Rb1 {[%clk 0:00:20]} 27. Nd5 {[%clk 0:00:01]}  Rxe1+ {[%clk 0:00:19]} 28. Bf1 {[%clk 0:00:02]}  Bh3 {[%clk 0:00:14]} 0-1


[Site "https://www.chess.com"]

[Event "Titled Tuesday Blitz November 29 Early 2022"]
[White "Timofeev, Artyom"]
[Black "Fromm, Marius"]
[WhiteFideId "4140419"]
[BlackFideId "12993190"]
[WhiteElo "2586"]
[BlackElo "2325"]
[Result "1-0"]
[Round "05"]
[TimeControl "180+1"]
[Date "2022.11.30"]
[WhiteClock "0:00:15"]
[BlackClock "0:00:02"]

1. d4 {[%clk 0:03:00]}  Nf6 {[%clk 0:02:58]} 2. Bf4 {[%clk 0:02:59]}  e6 {[%clk 0:02:53]} 3. e3 {[%clk 0:02:58]}  c5 {[%clk 0:02:54]} 4. c3 {[%clk 0:02:56]}  Nc6 {[%clk 0:02:53]} 5. Nd2 {[%clk 0:02:52]}  d5 {[%clk 0:02:41]} 6. Ngf3 {[%clk 0:02:48]}  Bd6 {[%clk 0:02:41]} 7. Bg3 {[%clk 0:02:47]}  O-O {[%clk 0:02:41]} 8. Bd3 {[%clk 0:02:46]}  b6 {[%clk 0:02:42]} 9. Qe2 {[%clk 0:02:45]}  Bb7 {[%clk 0:02:41]} 10. Rd1 {[%clk 0:02:44]}  Qc7 {[%clk 0:02:37]} 11. O-O {[%clk 0:02:38]}  Bxg3 {[%clk 0:02:36]} 12. hxg3 {[%clk 0:02:38]}  e5 {[%clk 0:02:36]} 13. dxe5 {[%clk 0:02:32]}  Nxe5 {[%clk 0:02:37]} 14. Nxe5 {[%clk 0:02:29]}  Qxe5 {[%clk 0:02:38]} 15. Nf3 {[%clk 0:02:29]}  Qh5 {[%clk 0:02:35]} 16. Ba6 {[%clk 0:02:27]}  Bc6 {[%clk 0:02:26]} 17. Nh4 {[%clk 0:02:15]}  Qe5 {[%clk 0:02:16]} 18. Bd3 {[%clk 0:02:10]}  g6 {[%clk 0:02:14]} 19. c4 {[%clk 0:02:03]}  Rad8 {[%clk 0:01:50]} 20. cxd5 {[%clk 0:02:02]}  Bxd5 {[%clk 0:01:41]} 21. b3 {[%clk 0:02:01]}  Be4 {[%clk 0:01:33]} 22. Bc4 {[%clk 0:01:58]}  Kg7 {[%clk 0:01:30]} 23. Rd2 {[%clk 0:01:45]}  Qc3 {[%clk 0:01:26]} 24. Rfd1 {[%clk 0:01:43]}  Rxd2 {[%clk 0:01:26]} 25. Qxd2 {[%clk 0:01:42]}  Qe5 {[%clk 0:01:11]} 26. a4 {[%clk 0:01:29]}  Re8 {[%clk 0:00:58]} 27. Nf3 {[%clk 0:01:27]}  Bxf3 {[%clk 0:00:47]} 28. gxf3 {[%clk 0:01:27]}  h5 {[%clk 0:00:46]} 29. Qd6 {[%clk 0:01:19]}  Qxd6 {[%clk 0:00:45]} 30. Rxd6 {[%clk 0:01:18]}  Re7 {[%clk 0:00:46]} 31. Kg2 {[%clk 0:01:14]}  Nd7 {[%clk 0:00:45]} 32. f4 {[%clk 0:01:13]}  Nf6 {[%clk 0:00:41]} 33. Bb5 {[%clk 0:01:00]}  Ne4 {[%clk 0:00:36]} 34. Rd3 {[%clk 0:01:00]}  Nf6 {[%clk 0:00:13]} 35. Kf3 {[%clk 0:00:56]}  Re6 {[%clk 0:00:12]} 36. Rd8 {[%clk 0:00:53]}  Re7 {[%clk 0:00:12]} 37. Bc6 {[%clk 0:00:49]}  Ng4 {[%clk 0:00:11]} 38. e4 {[%clk 0:00:45]}  f6 {[%clk 0:00:04]} 39. Bd5 {[%clk 0:00:44]}  g5 {[%clk 0:00:04]} 40. Bc4 {[%clk 0:00:26]}  gxf4 {[%clk 0:00:03]} 41. gxf4 {[%clk 0:00:26]}  Nh6 {[%clk 0:00:03]} 42. Rd1 {[%clk 0:00:22]}  Ng4 {[%clk 0:00:02]} 43. Re1 {[%clk 0:00:16]}  Nh2+ {[%clk 0:00:02]} 44. Kg3 {[%clk 0:00:15]}  Ng4 {[%clk 0:00:03]} 45. f3 {[%clk 0:00:16]}  Nh6 {[%clk 0:00:02]} 46. Rh1 {[%clk 0:00:15]}  Kg6 {[%clk 0:00:02]} 47. f5+ {[%clk 0:00:15]} 1-0


[Site "https://www.chess.com"]

[Event "Titled Tuesday Blitz November 29 Early 2022"]
[White "Valle Maytin, Luis Enrique"]
[Black "Bashirli, Saadat"]
[WhiteFideId "3503666"]
[BlackFideId "13429990"]
[WhiteElo "2225"]
[BlackElo "1408"]
[Result "0-1"]
[Round "05"]
[TimeControl "180+1"]
[Date "2022.11.30"]
[WhiteClock "0:00:04"]
[BlackClock "0:00:17"]

1. e4 {[%clk 0:03:00]}  c5 {[%clk 0:02:58]} 2. Nf3 {[%clk 0:02:58]}  g6 {[%clk 0:02:58]} 3. d4 {[%clk 0:02:58]}  cxd4 {[%clk 0:02:59]} 4. Nxd4 {[%clk 0:02:58]}  Nc6 {[%clk 0:02:59]} 5. Nc3 {[%clk 0:02:58]}  Bg7 {[%clk 0:02:57]} 6. Be3 {[%clk 0:02:58]}  Nf6 {[%clk 0:02:57]} 7. f3 {[%clk 0:02:57]}  O-O {[%clk 0:02:57]} 8. Qd2 {[%clk 0:02:55]}  d5 {[%clk 0:02:57]} 9. Nxc6 {[%clk 0:02:40]}  bxc6 {[%clk 0:02:56]} 10. O-O-O {[%clk 0:02:41]}  Be6 {[%clk 0:02:51]} 11. exd5 {[%clk 0:02:35]}  cxd5 {[%clk 0:02:50]} 12. Bb5 {[%clk 0:02:31]}  Qa5 {[%clk 0:02:39]} 13. Bd4 {[%clk 0:02:17]}  Rfd8 {[%clk 0:02:33]} 14. Ba4 {[%clk 0:02:16]}  Rab8 {[%clk 0:02:30]} 15. Bb3 {[%clk 0:02:16]}  Qb4 {[%clk 0:02:28]} 16. Kb1 {[%clk 0:02:09]}  a5 {[%clk 0:02:27]} 17. a3 {[%clk 0:02:09]}  Qb7 {[%clk 0:02:25]} 18. Na4 {[%clk 0:02:05]}  Qc6 {[%clk 0:02:20]} 19. Nc5 {[%clk 0:02:00]}  Nh5 {[%clk 0:02:05]} 20. Nxe6 {[%clk 0:01:42]}  Qxe6 {[%clk 0:01:59]} 21. Bxg7 {[%clk 0:01:41]}  Nxg7 {[%clk 0:01:57]} 22. Qxa5 {[%clk 0:01:40]}  Qe2 {[%clk 0:01:47]} 23. Qd2 {[%clk 0:01:39]}  Qb5 {[%clk 0:01:45]} 24. Qd3 {[%clk 0:01:38]}  Qb6 {[%clk 0:01:43]} 25. Qd4 {[%clk 0:01:38]}  Qb5 {[%clk 0:01:43]} 26. Qb4 {[%clk 0:01:33]}  Qe2 {[%clk 0:01:39]} 27. Qd2 {[%clk 0:01:32]}  Qb5 {[%clk 0:01:38]} 28. Rhe1 {[%clk 0:01:28]}  e6 {[%clk 0:01:35]} 29. Qd3 {[%clk 0:01:27]}  Qb6 {[%clk 0:01:35]} 30. Qd4 {[%clk 0:01:20]}  Qc7 {[%clk 0:01:29]} 31. g3 {[%clk 0:01:13]}  Nf5 {[%clk 0:01:27]} 32. Qe5 {[%clk 0:01:13]}  Qb6 {[%clk 0:01:25]} 33. g4 {[%clk 0:01:11]}  Ng7 {[%clk 0:01:23]} 34. Qd4 {[%clk 0:01:11]}  Qc7 {[%clk 0:01:22]} 35. f4 {[%clk 0:01:07]}  Rdc8 {[%clk 0:01:09]} 36. Re2 {[%clk 0:01:01]}  Rb5 {[%clk 0:00:59]} 37. h3 {[%clk 0:01:01]}  Rcb8 {[%clk 0:00:57]} 38. Rd3 {[%clk 0:00:55]}  h6 {[%clk 0:00:48]} 39. Rc3 {[%clk 0:00:55]}  Qb7 {[%clk 0:00:46]} 40. Re1 {[%clk 0:00:47]}  Qa6 {[%clk 0:00:44]} 41. Qe5 {[%clk 0:00:42]}  Qb6 {[%clk 0:00:34]} 42. Qc7 {[%clk 0:00:40]}  Qf2 {[%clk 0:00:31]} 43. Qe5 {[%clk 0:00:31]}  d4 {[%clk 0:00:28]} 44. Rd3 {[%clk 0:00:11]}  Rxe5 {[%clk 0:00:26]} 45. Rxe5 {[%clk 0:00:12]}  Qxf4 {[%clk 0:00:26]} 46. Rc5 {[%clk 0:00:12]}  Qf1+ {[%clk 0:00:25]} 47. Ka2 {[%clk 0:00:12]}  Qf4 {[%clk 0:00:20]} 48. a4 {[%clk 0:00:08]}  Ra8 {[%clk 0:00:20]} 49. a5 {[%clk 0:00:08]}  Qd6 {[%clk 0:00:18]} 50. Rb5 {[%clk 0:00:06]}  Qc6 {[%clk 0:00:18]} 51. Ba4 {[%clk 0:00:05]}  Qc4+ {[%clk 0:00:18]} 52. Rdb3 {[%clk 0:00:04]}  Qxa4+ {[%clk 0:00:17]} 53. Kb1 {[%clk 0:00:04]}  Rxa5 {[%clk 0:00:16]} 54. Rb8+ {[%clk 0:00:04]}  Kh7 {[%clk 0:00:17]} 55. Kc1 {[%clk 0:00:05]}  Qa1+ {[%clk 0:00:17]} 56. Kd2 {[%clk 0:00:06]}  Qf1 {[%clk 0:00:17]} 57. Rf8 {[%clk 0:00:04]}  Qf2+ {[%clk 0:00:17]} 58. Kc1 {[%clk 0:00:04]}  Ra1# {[%clk 0:00:17]} 0-1


[Site "https://www.chess.com"]

[Event "Titled Tuesday Blitz November 29 Early 2022"]
[White "Vargas, Mauricio"]
[Black "Tsatsalashvili, Keti"]
[WhiteFideId "4404572"]
[BlackFideId "13603434"]
[WhiteElo "2025"]
[BlackElo "2220"]
[Result "0-1"]
[Round "05"]
[TimeControl "180+1"]
[Date "2022.11.30"]
[WhiteClock "0:00:48"]
[BlackClock "0:01:45"]

1. e4 {[%clk 0:02:44]}  c5 {[%clk 0:02:59]} 2. Nc3 {[%clk 0:02:42]}  d6 {[%clk 0:02:56]} 3. f4 {[%clk 0:02:43]}  Nc6 {[%clk 0:02:55]} 4. Nf3 {[%clk 0:02:44]}  e6 {[%clk 0:02:55]} 5. Bb5 {[%clk 0:02:44]}  Ne7 {[%clk 0:02:54]} 6. Bxc6+ {[%clk 0:02:45]}  Nxc6 {[%clk 0:02:54]} 7. O-O {[%clk 0:02:46]}  Be7 {[%clk 0:02:50]} 8. d3 {[%clk 0:02:47]}  d5 {[%clk 0:02:46]} 9. e5 {[%clk 0:02:47]}  a6 {[%clk 0:02:45]} 10. Ne2 {[%clk 0:02:47]}  Qc7 {[%clk 0:02:45]} 11. c3 {[%clk 0:02:47]}  Bd7 {[%clk 0:02:45]} 12. Qe1 {[%clk 0:02:47]}  O-O-O {[%clk 0:02:41]} 13. Rb1 {[%clk 0:02:47]}  h6 {[%clk 0:02:39]} 14. a3 {[%clk 0:02:44]}  c4 {[%clk 0:02:38]} 15. d4 {[%clk 0:02:43]}  Na5 {[%clk 0:02:34]} 16. Be3 {[%clk 0:02:34]}  Nb3 {[%clk 0:02:33]} 17. Nc1 {[%clk 0:02:32]}  Na5 {[%clk 0:02:25]} 18. Bd2 {[%clk 0:02:24]}  Rdg8 {[%clk 0:02:17]} 19. b3 {[%clk 0:02:17]}  cxb3 {[%clk 0:02:11]} 20. Nxb3 {[%clk 0:02:16]}  Nxb3 {[%clk 0:02:08]} 21. Rxb3 {[%clk 0:02:15]}  Ba4 {[%clk 0:02:06]} 22. Rb1 {[%clk 0:02:03]}  Bc2 {[%clk 0:02:06]} 23. Rb2 {[%clk 0:02:00]}  Bd3 {[%clk 0:02:06]} 24. Rf2 {[%clk 0:01:51]}  Bxa3 {[%clk 0:02:04]} 25. Ra2 {[%clk 0:01:38]}  Be7 {[%clk 0:02:03]} 26. Qa1 {[%clk 0:01:27]}  Kb8 {[%clk 0:02:00]} 27. Ne1 {[%clk 0:01:25]}  Bc4 {[%clk 0:02:00]} 28. Nc2 {[%clk 0:01:21]}  Bxa2 {[%clk 0:01:58]} 29. Qxa2 {[%clk 0:01:20]}  g6 {[%clk 0:01:54]} 30. Rf1 {[%clk 0:01:20]}  Rc8 {[%clk 0:01:53]} 31. Rb1 {[%clk 0:01:18]}  Qc4 {[%clk 0:01:50]} 32. Be1 {[%clk 0:01:00]}  Qxa2 {[%clk 0:01:47]} 33. Rxb7+ {[%clk 0:00:48]}  Kxb7 {[%clk 0:01:45]} 0-1


[Site "https://www.chess.com"]